[Event "*** Titled Tuesday Blitz"]
[Site "Chess.com"]
[Date "2020.01.07"]
[Round "4"]
[White "Dynamikus"]
[Black "temus_galaktionov"]
[Result "0-1"]
[WhiteElo "2426"]
[BlackElo "2740"]
[TimeControl "180+2"]
[EndTime "13:57:41 PST"]
[Termination "temus_galaktionov won by resignation"]

1. Nf3 {[%clk 0:03:01.9]} 1... c6 {[%clk 0:03:00]} 2. c4 {[%clk 0:03:00.6]} 2...
g6 {[%clk 0:03:01.9]} 3. d4 {[%clk 0:03:01.3]} 3... Bg7 {[%clk 0:03:03.8]} 4.
Nc3 {[%clk 0:03:02.1]} 4... d6 {[%clk 0:03:04.1]} 5. e4 {[%clk 0:03:02.7]} 5...
Nd7 {[%clk 0:03:03.6]} 6. Be2 {[%clk 0:03:03.3]} 6... e5 {[%clk 0:03:04.6]} 7.
d5 {[%clk 0:03:04.2]} 7... c5 {[%clk 0:03:03.3]} 8. g4 {[%clk 0:02:58.8]} 8...
f6 {[%clk 0:03:02.6]} 9. h4 {[%clk 0:02:58.1]} 9... h5 {[%clk 0:03:00.7]} 10. g5
{[%clk 0:02:43.1]} 10... Qe7 {[%clk 0:02:56.8]} 11. Rg1 {[%clk 0:02:38.2]} 11...
Nf8 {[%clk 0:02:52.2]} 12. gxf6 {[%clk 0:02:17.2]} 12... Nxf6 {[%clk 0:02:52.2]}
13. Ng5 {[%clk 0:02:17.8]} 13... N8h7 {[%clk 0:02:51.7]} 14. f3 {[%clk
0:02:00.5]} 14... Nxg5 {[%clk 0:02:48.9]} 15. Bxg5 {[%clk 0:01:57.1]} 15... Qf7
{[%clk 0:02:46.1]} 16. Nb5 {[%clk 0:01:51.3]} 16... Ke7 {[%clk 0:02:45]} 17. b4
{[%clk 0:01:44.7]} 17... b6 {[%clk 0:02:42.3]} 18. bxc5 {[%clk 0:01:43.8]} 18...
bxc5 {[%clk 0:02:43.4]} 19. Rb1 {[%clk 0:01:41.9]} 19... a6 {[%clk 0:02:43.3]}
20. Nc3 {[%clk 0:01:30.9]} 20... Kf8 {[%clk 0:02:42.5]} 21. Rb6 {[%clk
0:01:24.3]} 21... Ne8 {[%clk 0:02:43]} 22. Qd2 {[%clk 0:01:18.8]} 22... Bf6
{[%clk 0:02:43.6]} 23. Rb3 {[%clk 0:01:10.5]} 23... Rg8 {[%clk 0:02:41]} 24. Na4
{[%clk 0:01:10.8]} 24... Ra7 {[%clk 0:02:35.3]} 25. Nb6 {[%clk 0:01:10.2]} 25...
Bb7 {[%clk 0:02:36]} 26. Bh6+ {[%clk 0:01:09.3]} 26... Ke7 {[%clk 0:02:36.8]}
27. Bg5 {[%clk 0:01:09.8]} 27... Bxg5 {[%clk 0:02:35.9]} 28. Qxg5+ {[%clk
0:01:05]} 28... Qf6 {[%clk 0:02:36.9]} 29. Kf2 {[%clk 0:01:05.5]} 29... Qxg5
{[%clk 0:02:37.5]} 30. hxg5 {[%clk 0:01:07.2]} 30... Nc7 {[%clk 0:02:35.7]} 31.
Rgb1 {[%clk 0:01:02.5]} 31... Bc8 {[%clk 0:02:36.6]} 32. Kg3 {[%clk 0:00:58.1]}
32... Bd7 {[%clk 0:02:30]} 33. Bf1 {[%clk 0:00:57.9]} 33... Rb8 {[%clk 0:01:23]}
34. Nxd7 {[%clk 0:00:40.8]} 34... Rxb3 {[%clk 0:01:21.5]} 35. Rxb3 {[%clk
0:00:41.6]} 35... Kxd7 {[%clk 0:01:23.4]} 36. Bh3+ {[%clk 0:00:43]} 36... Ke7
{[%clk 0:01:19.5]} 37. Rb8 {[%clk 0:00:41.2]} 37... Ne8 {[%clk 0:01:13.5]} 38.
f4 {[%clk 0:00:39.3]} 38... exf4+ {[%clk 0:01:07.7]} 39. Kxf4 {[%clk 0:00:40.5]}
39... a5 {[%clk 0:01:09.6]} 40. a4 {[%clk 0:00:40.9]} 40... Rc7 {[%clk
0:00:57.8]} 41. Ra8 {[%clk 0:00:37.8]} 41... Rb7 {[%clk 0:00:52.9]} 42. Rxa5
{[%clk 0:00:38.9]} 42... Nc7 {[%clk 0:00:47.4]} 43. e5 {[%clk 0:00:32.7]} 43...
Rb2 {[%clk 0:00:32.5]} 44. Ra7 {[%clk 0:00:30.7]} 44... dxe5+ {[%clk 0:00:25.8]}
45. Kxe5 {[%clk 0:00:31.9]} 45... Re2+ {[%clk 0:00:27.7]} 46. Kf4 {[%clk
0:00:32.9]} 46... Kd6 {[%clk 0:00:29.1]} 47. a5 {[%clk 0:00:30.5]} 47... Rc2
{[%clk 0:00:28.5]} 48. Rb7 {[%clk 0:00:21.3]} 48... Rxc4+ {[%clk 0:00:29.6]} 49.
Kf3 {[%clk 0:00:21.7]} 49... Rc3+ {[%clk 0:00:30.8]} 50. Kg2 {[%clk 0:00:22.6]}
50... Nxd5 {[%clk 0:00:32]} 51. Kh2 {[%clk 0:00:24.1]} 51... Ra3 {[%clk
0:00:32.1]} 52. Rg7 {[%clk 0:00:23.2]} 52... Nf4 {[%clk 0:00:32.7]} 53. Bf1
{[%clk 0:00:21.4]} 53... Rxa5 {[%clk 0:00:32.8]} 54. Rf7 {[%clk 0:00:21.4]}
54... Ke5 {[%clk 0:00:33.5]} 55. Kg3 {[%clk 0:00:21.1]} 55... Ra3+ {[%clk
0:00:34.3]} 56. Kf2 {[%clk 0:00:22.4]} 56... Nd5 {[%clk 0:00:27]} 57. Rg7 {[%clk
0:00:21.3]} 57... Kf5 {[%clk 0:00:27.8]} 58. Rd7 {[%clk 0:00:19.1]} 58... Nf4
{[%clk 0:00:28.2]} 59. Rc7 {[%clk 0:00:20]} 59... Rc3 {[%clk 0:00:28.1]} 60.
Rf7+ {[%clk 0:00:16.5]} 60... Kxg5 {[%clk 0:00:29.1]} 61. Re7 {[%clk 0:00:16.7]}
61... Kg4 {[%clk 0:00:29.5]} 62. Re4 {[%clk 0:00:17.4]} 62... g5 {[%clk
0:00:30.6]} 63. Ra4 {[%clk 0:00:17.8]} 63... h4 {[%clk 0:00:30.4]} 64. Be2+
{[%clk 0:00:15.8]} 64... Kf5 {[%clk 0:00:31.3]} 65. Bd1 {[%clk 0:00:13.7]} 65...
g4 {[%clk 0:00:31.5]} 66. Ra8 {[%clk 0:00:06.7]} 66... g3+ {[%clk 0:00:32.4]}
67. Kg1 {[%clk 0:00:02.2]} 67... Rc1 {[%clk 0:00:32.6]} 68. Rd8 {[%clk
0:00:03.8]} 68... h3 {[%clk 0:00:32.9]} 69. Kf1 {[%clk 0:00:04.2]} 69... h2
{[%clk 0:00:32.5]} 0-1

[Event "*** Titled Tuesday Blitz"]
[Site "Chess.com"]
[Date "2020.01.07"]
[Round "4"]
[White "1stSecond"]
[Black "vovachesss"]
[Result "1-0"]
[WhiteElo "2833"]
[BlackElo "2578"]
[TimeControl "180+2"]
[EndTime "13:57:42 PST"]
[Termination "1stSecond won on time"]

1. Nf3 {[%clk 0:03:01.9]} 1... d5 {[%clk 0:03:00.4]} 2. g3 {[%clk 0:03:02.8]}
2... Nf6 {[%clk 0:03:01.5]} 3. Bg2 {[%clk 0:03:03.8]} 3... c6 {[%clk 0:03:02.7]}
4. O-O {[%clk 0:03:05.1]} 4... Bg4 {[%clk 0:03:03.7]} 5. d4 {[%clk 0:03:04.3]}
5... Nbd7 {[%clk 0:03:04.1]} 6. Nbd2 {[%clk 0:03:05.1]} 6... e6 {[%clk
0:03:05.1]} 7. Re1 {[%clk 0:03:05.8]} 7... Be7 {[%clk 0:03:05.7]} 8. e4 {[%clk
0:03:06.8]} 8... dxe4 {[%clk 0:03:06.8]} 9. Nxe4 {[%clk 0:03:08.7]} 9... Nxe4
{[%clk 0:03:06.9]} 10. Rxe4 {[%clk 0:03:10.6]} 10... Nf6 {[%clk 0:03:08.8]} 11.
Re1 {[%clk 0:03:12.1]} 11... O-O {[%clk 0:03:10.3]} 12. c3 {[%clk 0:03:13.6]}
12... c5 {[%clk 0:03:09.9]} 13. h3 {[%clk 0:03:10.5]} 13... Bxf3 {[%clk
0:03:06.2]} 14. Qxf3 {[%clk 0:03:06.2]} 14... cxd4 {[%clk 0:03:08.1]} 15. Qxb7
{[%clk 0:03:07.6]} 15... Rb8 {[%clk 0:03:02.5]} 16. Qxa7 {[%clk 0:03:08.7]}
16... dxc3 {[%clk 0:03:03.6]} 17. bxc3 {[%clk 0:03:10.6]} 17... Rc8 {[%clk
0:02:56]} 18. Bb2 {[%clk 0:03:02.3]} 18... Bc5 {[%clk 0:02:54.2]} 19. Qa6 {[%clk
0:02:50.3]} 19... Rb8 {[%clk 0:02:37.3]} 20. Qe2 {[%clk 0:02:40.8]} 20... Qa5
{[%clk 0:02:35.5]} 21. c4 {[%clk 0:02:33.7]} 21... Rfd8 {[%clk 0:02:29.3]} 22.
Bxf6 {[%clk 0:02:09.7]} 22... gxf6 {[%clk 0:01:27.5]} 23. Rad1 {[%clk
0:02:09.6]} 23... f5 {[%clk 0:01:20]} 24. Kh2 {[%clk 0:01:58.9]} 24... Qa3
{[%clk 0:01:13.8]} 25. Qh5 {[%clk 0:01:35.7]} 25... Be7 {[%clk 0:00:35.8]} 26.
Qe2 {[%clk 0:01:02.2]} 26... Bc5 {[%clk 0:00:35.9]} 27. Rxd8+ {[%clk 0:00:58.7]}
27... Rxd8 {[%clk 0:00:36.7]} 28. Rb1 {[%clk 0:01:00.4]} 28... Qc3 {[%clk
0:00:32.3]} 29. Rb2 {[%clk 0:00:54.4]} 29... Kg7 {[%clk 0:00:26]} 30. Rc2 {[%clk
0:00:54.3]} 30... Qd3 {[%clk 0:00:18.2]} 31. Qxd3 {[%clk 0:00:53.3]} 31... Rxd3
{[%clk 0:00:19.8]} 32. Bc6 {[%clk 0:00:54.6]} 32... Ra3 {[%clk 0:00:20.1]} 33.
Kg2 {[%clk 0:00:51.9]} 33... Kf6 {[%clk 0:00:20.8]} 34. Rb2 {[%clk 0:00:50.5]}
34... Ke5 {[%clk 0:00:19.7]} 35. Rd2 {[%clk 0:00:50.4]} 35... f4 {[%clk
0:00:17.1]} 36. Re2+ {[%clk 0:00:46]} 36... Kf5 {[%clk 0:00:17.8]} 37. Be4+
{[%clk 0:00:46.7]} 37... Ke5 {[%clk 0:00:10.7]} 38. Bxh7+ {[%clk 0:00:42.7]}
38... Kd4 {[%clk 0:00:09.1]} 39. gxf4 {[%clk 0:00:39.6]} 39... Kxc4 {[%clk
0:00:09]} 40. f5 {[%clk 0:00:40.4]} 40... exf5 {[%clk 0:00:06.6]} 41. Bxf5
{[%clk 0:00:42.3]} 41... Bd4 {[%clk 0:00:06.1]} 42. h4 {[%clk 0:00:39.6]} 42...
Kd5 {[%clk 0:00:04.8]} 43. h5 {[%clk 0:00:40.1]} 43... Ra6 {[%clk 0:00:05.2]}
44. Kh3 {[%clk 0:00:39.1]} 44... Be5 {[%clk 0:00:04.6]} 45. Kg4 {[%clk
0:00:36.9]} 45... Ra4+ {[%clk 0:00:05.3]} 46. Kh3 {[%clk 0:00:34]} 46... Rf4
{[%clk 0:00:06.2]} 47. Bc2 {[%clk 0:00:30.2]} 47... Bf6 {[%clk 0:00:07.1]} 48.
Bb3+ {[%clk 0:00:25.1]} 48... Kd4 {[%clk 0:00:08.4]} 49. Bxf7 {[%clk 0:00:25.9]}
49... Rh4+ {[%clk 0:00:08.7]} 50. Kg3 {[%clk 0:00:26.6]} 50... Rh1 {[%clk
0:00:09.7]} 51. Bg6 {[%clk 0:00:25.8]} 51... Be5+ {[%clk 0:00:10.5]} 52. Kg2
{[%clk 0:00:26.2]} 52... Rh2+ {[%clk 0:00:11.5]} 53. Kg1 {[%clk 0:00:27.4]}
53... Rh4 {[%clk 0:00:12]} 54. a4 {[%clk 0:00:27.5]} 54... Bc7 {[%clk
0:00:09.8]} 55. Rc2 {[%clk 0:00:20.6]} 55... Bb6 {[%clk 0:00:07.8]} 56. Kf1
{[%clk 0:00:19.1]} 56... Ke5 {[%clk 0:00:08]} 57. Rb2 {[%clk 0:00:18.3]} 57...
Bc5 {[%clk 0:00:07.7]} 58. Rb5 {[%clk 0:00:17.8]} 58... Kd6 {[%clk 0:00:09.2]}
59. a5 {[%clk 0:00:18.8]} 59... Rf4 {[%clk 0:00:10.1]} 60. Rb2 {[%clk
0:00:18.2]} 60... Ra4 {[%clk 0:00:10.2]} 61. Rd2+ {[%clk 0:00:14.8]} 61... Ke7
{[%clk 0:00:09.4]} 62. Rd5 {[%clk 0:00:12.4]} 62... Ra1+ {[%clk 0:00:06.5]} 63.
Kg2 {[%clk 0:00:12.9]} 63... Bb4 {[%clk 0:00:08.4]} 64. h6 {[%clk 0:00:10.9]}
64... Bxa5 {[%clk 0:00:09.8]} 65. h7 {[%clk 0:00:12.5]} 65... Bc3 {[%clk
0:00:11.4]} 66. Rc5 {[%clk 0:00:11.4]} 66... Bd4 {[%clk 0:00:03.5]} 67. Rc4
{[%clk 0:00:12.5]} 67... Bh8 {[%clk 0:00:03.1]} 68. Rc8 {[%clk 0:00:13.1]} 68...
Kf6 {[%clk 0:00:04.7]} 69. Bc2 {[%clk 0:00:11]} 69... Kg7 {[%clk 0:00:05.7]} 70.
Rg8+ {[%clk 0:00:12.3]} 70... Kh6 {[%clk 0:00:05.5]} 71. Rxh8 {[%clk 0:00:13.6]}
71... Ra7 {[%clk 0:00:05.4]} 72. Rg8 {[%clk 0:00:14.4]} 72... Rg7+ {[%clk
0:00:02.6]} 73. Kf1 {[%clk 0:00:14.9]} 1-0

[Event "*** Titled Tuesday Blitz"]
[Site "Chess.com"]
[Date "2020.01.07"]
[Round "4"]
[White "RitvarsReimanis"]
[Black "TigrVShlyape"]
[Result "0-1"]
[WhiteElo "2569"]
[BlackElo "2808"]
[TimeControl "180+2"]
[EndTime "13:58:19 PST"]
[Termination "TigrVShlyape won on time"]

1. d4 {[%clk 0:03:01.7]} 1... d5 {[%clk 0:03:00.8]} 2. c4 {[%clk 0:03:02.8]}
2... c6 {[%clk 0:03:01.7]} 3. Nf3 {[%clk 0:03:04.1]} 3... Nf6 {[%clk 0:03:02.5]}
4. e3 {[%clk 0:03:05.5]} 4... g6 {[%clk 0:03:03]} 5. Nc3 {[%clk 0:03:06.4]} 5...
Bg7 {[%clk 0:03:04.6]} 6. Qb3 {[%clk 0:03:06.2]} 6... O-O {[%clk 0:03:04.9]} 7.
Bd2 {[%clk 0:03:07.9]} 7... a6 {[%clk 0:03:02.5]} 8. Rc1 {[%clk 0:03:06.5]} 8...
e6 {[%clk 0:02:45.2]} 9. Be2 {[%clk 0:03:02.3]} 9... Nbd7 {[%clk 0:02:46.3]} 10.
O-O {[%clk 0:03:03.2]} 10... dxc4 {[%clk 0:02:46.8]} 11. Bxc4 {[%clk 0:03:03.8]}
11... b5 {[%clk 0:02:47.8]} 12. Be2 {[%clk 0:03:05.2]} 12... c5 {[%clk
0:02:49.1]} 13. dxc5 {[%clk 0:03:03.4]} 13... Nxc5 {[%clk 0:02:49.7]} 14. Qc2
{[%clk 0:03:02.8]} 14... Ncd7 {[%clk 0:02:48.9]} 15. Ne4 {[%clk 0:02:51.6]}
15... Bb7 {[%clk 0:02:26.7]} 16. Nd6 {[%clk 0:02:28.5]} 16... Qb6 {[%clk
0:02:24.6]} 17. Nxb7 {[%clk 0:02:22.7]} 17... Qxb7 {[%clk 0:02:25.6]} 18. Qc7
{[%clk 0:02:17.1]} 18... Qxc7 {[%clk 0:02:11.7]} 19. Rxc7 {[%clk 0:02:19]} 19...
Nb6 {[%clk 0:02:08.3]} 20. Rb7 {[%clk 0:02:08.5]} 20... Na4 {[%clk 0:01:53.4]}
21. Bb4 {[%clk 0:01:58.9]} 21... Rfc8 {[%clk 0:01:49]} 22. b3 {[%clk 0:01:07.2]}
22... Nc5 {[%clk 0:01:48.4]} 23. Bxc5 {[%clk 0:01:06.7]} 23... Rxc5 {[%clk
0:01:49.3]} 24. Nd4 {[%clk 0:00:56.3]} 24... e5 {[%clk 0:01:47.1]} 25. b4 {[%clk
0:00:57.4]} 25... Rcc8 {[%clk 0:01:44.5]} 26. Nb3 {[%clk 0:00:58.3]} 26... Ne4
{[%clk 0:01:39.7]} 27. Bf3 {[%clk 0:00:53.7]} 27... Nc3 {[%clk 0:01:40.3]} 28.
Nc5 {[%clk 0:00:46.3]} 28... f5 {[%clk 0:01:04.7]} 29. Rxg7+ {[%clk 0:00:24.7]}
29... Kxg7 {[%clk 0:01:05]} 30. Bxa8 {[%clk 0:00:26.6]} 30... Rxa8 {[%clk
0:01:05.8]} 31. a3 {[%clk 0:00:27]} 31... a5 {[%clk 0:01:05]} 32. h3 {[%clk
0:00:22.8]} 32... axb4 {[%clk 0:01:05.4]} 33. axb4 {[%clk 0:00:24.7]} 33... Ra2
{[%clk 0:00:55.9]} 34. g4 {[%clk 0:00:25.2]} 34... Rb2 {[%clk 0:00:52.2]} 35.
Nd3 {[%clk 0:00:25.7]} 35... Rb3 {[%clk 0:00:51.4]} 36. Nxe5 {[%clk 0:00:26.2]}
36... Rxb4 {[%clk 0:00:49.2]} 37. gxf5 {[%clk 0:00:27.7]} 37... gxf5 {[%clk
0:00:49.8]} 38. Nd3 {[%clk 0:00:25.4]} 38... Ra4 {[%clk 0:00:47.5]} 39. Nf4
{[%clk 0:00:25]} 39... b4 {[%clk 0:00:46.9]} 40. Rc1 {[%clk 0:00:26.6]} 40...
Kf6 {[%clk 0:00:44.6]} 41. Kg2 {[%clk 0:00:27.8]} 41... Ra6 {[%clk 0:00:22.1]}
42. Nd3 {[%clk 0:00:28.6]} 42... Nd5 {[%clk 0:00:19.6]} 43. Rc5 {[%clk
0:00:29.6]} 43... Rd6 {[%clk 0:00:19.2]} 44. Rb5 {[%clk 0:00:20.9]} 44... Nxe3+
{[%clk 0:00:19.3]} 45. fxe3 {[%clk 0:00:21.2]} 45... Rxd3 {[%clk 0:00:20.8]} 46.
Rxb4 {[%clk 0:00:22.6]} 46... Rxe3 {[%clk 0:00:21.8]} 47. Rb7 {[%clk 0:00:22.4]}
47... h5 {[%clk 0:00:21.1]} 48. Rb8 {[%clk 0:00:24.3]} 48... Kg5 {[%clk
0:00:20.7]} 49. Rc8 {[%clk 0:00:20.7]} 49... h4 {[%clk 0:00:20.1]} 50. Rb8
{[%clk 0:00:19.8]} 50... Rc3 {[%clk 0:00:19.7]} 51. Rd8 {[%clk 0:00:20.5]} 51...
Rg3+ {[%clk 0:00:18.8]} 52. Kh2 {[%clk 0:00:21.5]} 52... Re3 {[%clk 0:00:19.8]}
53. Kg2 {[%clk 0:00:22.4]} 53... Kf4 {[%clk 0:00:21]} 54. Rd4+ {[%clk 0:00:23]}
54... Re4 {[%clk 0:00:22.3]} 55. Rd2 {[%clk 0:00:23.1]} 55... Rb4 {[%clk
0:00:23]} 56. Re2 {[%clk 0:00:19.7]} 56... Rb3 {[%clk 0:00:23.2]} 57. Rf2+
{[%clk 0:00:19.7]} 57... Ke4 {[%clk 0:00:24.4]} 58. Re2+ {[%clk 0:00:21.2]}
58... Re3 {[%clk 0:00:25.4]} 59. Ra2 {[%clk 0:00:22.3]} 59... Rg3+ {[%clk
0:00:26.1]} 60. Kh2 {[%clk 0:00:23.8]} 60... Rd3 {[%clk 0:00:27]} 61. Kg2 {[%clk
0:00:24.1]} 61... f4 {[%clk 0:00:27.7]} 62. Re2+ {[%clk 0:00:19.1]} 62... Re3
{[%clk 0:00:27.9]} 63. Ra2 {[%clk 0:00:18.2]} 63... Rg3+ {[%clk 0:00:28.8]} 64.
Kh2 {[%clk 0:00:19.1]} 64... Rd3 {[%clk 0:00:29.3]} 65. Kg2 {[%clk 0:00:17.9]}
65... Ke3 {[%clk 0:00:30.4]} 66. Rf2 {[%clk 0:00:13.3]} 66... Rd5 {[%clk
0:00:31]} 67. Rf3+ {[%clk 0:00:13.1]} 67... Ke4 {[%clk 0:00:31.8]} 68. Rf2
{[%clk 0:00:14.7]} 68... Rg5+ {[%clk 0:00:32.6]} 69. Kh2 {[%clk 0:00:16.2]}
69... f3 {[%clk 0:00:33.6]} 70. Rf1 {[%clk 0:00:16.6]} 70... Rg2+ {[%clk
0:00:31.7]} 71. Kh1 {[%clk 0:00:17.1]} 71... Re2 {[%clk 0:00:31.4]} 72. Rg1
{[%clk 0:00:16.5]} 72... f2 {[%clk 0:00:30.1]} 73. Rf1 {[%clk 0:00:17.5]} 73...
Kf3 {[%clk 0:00:31.1]} 74. Kh2 {[%clk 0:00:17.2]} 74... Re3 {[%clk 0:00:32.1]}
75. Kh1 {[%clk 0:00:18]} 75... Re1 {[%clk 0:00:32.6]} 76. Kh2 {[%clk 0:00:19]}
76... Re2 {[%clk 0:00:27.8]} 77. Kh1 {[%clk 0:00:20]} 77... Kg3 {[%clk
0:00:28.6]} 0-1

[Event "*** Titled Tuesday Blitz"]
[Site "Chess.com"]
[Date "2020.01.07"]
[Round "4"]
[White "Mikasinski"]
[Black "KerryStead"]
[Result "1-0"]
[WhiteElo "2287"]
[BlackElo "2092"]
[TimeControl "180+2"]
[EndTime "13:58:34 PST"]
[Termination "Mikasinski won by checkmate"]

1. e4 {[%clk 0:03:01.9]} 1... e5 {[%clk 0:03:00.2]} 2. Nf3 {[%clk 0:03:02.7]}
2... d5 {[%clk 0:02:59.8]} 3. Nxe5 {[%clk 0:03:03.1]} 3... Bd6 {[%clk
0:03:00.1]} 4. d4 {[%clk 0:02:56.9]} 4... dxe4 {[%clk 0:03:01.1]} 5. Nc4 {[%clk
0:02:49.2]} 5... f5 {[%clk 0:02:58.3]} 6. Nc3 {[%clk 0:02:46.4]} 6... Nf6 {[%clk
0:02:58.3]} 7. f3 {[%clk 0:02:42.4]} 7... exf3 {[%clk 0:02:56.2]} 8. Qxf3 {[%clk
0:02:42.8]} 8... O-O {[%clk 0:02:55.2]} 9. Nxd6 {[%clk 0:02:41.5]} 9... Qxd6
{[%clk 0:02:51.9]} 10. Be3 {[%clk 0:02:36.8]} 10... c6 {[%clk 0:02:36.5]} 11.
O-O-O {[%clk 0:02:36.2]} 11... Be6 {[%clk 0:02:25.8]} 12. Kb1 {[%clk 0:02:34.3]}
12... Nbd7 {[%clk 0:02:22.2]} 13. h3 {[%clk 0:02:32.9]} 13... Rae8 {[%clk
0:02:20.8]} 14. Bd3 {[%clk 0:02:26.9]} 14... Nd5 {[%clk 0:02:12.4]} 15. Bd2
{[%clk 0:02:23.3]} 15... Nxc3+ {[%clk 0:02:05.2]} 16. Bxc3 {[%clk 0:02:23.5]}
16... Qd5 {[%clk 0:02:06.2]} 17. Qxd5 {[%clk 0:02:20.5]} 17... Bxd5 {[%clk
0:02:05.7]} 18. Rhg1 {[%clk 0:02:15]} 18... Nb6 {[%clk 0:01:53.1]} 19. b3 {[%clk
0:02:11.6]} 19... Be4 {[%clk 0:01:52.2]} 20. Bf1 {[%clk 0:02:04.2]} 20... Nd5
{[%clk 0:01:51]} 21. Bd2 {[%clk 0:01:59.5]} 21... b5 {[%clk 0:01:47.5]} 22. Kb2
{[%clk 0:01:55.4]} 22... f4 {[%clk 0:01:43.7]} 23. c4 {[%clk 0:01:52.3]} 23...
bxc4 {[%clk 0:01:42.5]} 24. Bxc4 {[%clk 0:01:50.8]} 24... Kh8 {[%clk 0:01:38.4]}
25. Rde1 {[%clk 0:01:49.1]} 25... h6 {[%clk 0:01:31.3]} 26. Re2 {[%clk
0:01:41.7]} 26... f3 {[%clk 0:01:26.1]} 27. gxf3 {[%clk 0:01:42.4]} 27... Bxf3
{[%clk 0:01:26]} 28. Rxe8 {[%clk 0:01:43]} 28... Rxe8 {[%clk 0:01:27.7]} 29. Rg6
{[%clk 0:01:42.8]} 29... Nf6 {[%clk 0:01:15.5]} 30. Bxh6 {[%clk 0:00:52.4]}
30... Kh7 {[%clk 0:01:14.6]} 31. Rg3 {[%clk 0:00:40.1]} 31... Kxh6 {[%clk
0:01:11.5]} 32. Rxf3 {[%clk 0:00:40.9]} 32... Nd5 {[%clk 0:01:11.7]} 33. Bxd5
{[%clk 0:00:37.6]} 33... cxd5 {[%clk 0:01:13.6]} 34. Rf5 {[%clk 0:00:37.9]}
34... Rd8 {[%clk 0:01:13.1]} 35. Kc3 {[%clk 0:00:37.2]} 35... Kg6 {[%clk
0:01:11.1]} 36. Re5 {[%clk 0:00:37.2]} 36... Kf6 {[%clk 0:01:12.3]} 37. Kb4
{[%clk 0:00:36.5]} 37... Rh8 {[%clk 0:01:06.7]} 38. Rxd5 {[%clk 0:00:33.8]}
38... Rxh3 {[%clk 0:01:07.5]} 39. Ra5 {[%clk 0:00:34.6]} 39... g5 {[%clk
0:01:05.1]} 40. Ra6+ {[%clk 0:00:33.3]} 40... Kf5 {[%clk 0:01:02]} 41. Rxa7
{[%clk 0:00:34.5]} 41... g4 {[%clk 0:00:58.7]} 42. Rg7 {[%clk 0:00:35.1]} 42...
Rh6 {[%clk 0:00:56.7]} 43. Kc4 {[%clk 0:00:33.3]} 43... Rg6 {[%clk 0:00:56.4]}
44. Rf7+ {[%clk 0:00:34.3]} 44... Ke4 {[%clk 0:00:55.9]} 45. Re7+ {[%clk
0:00:33]} 45... Kf5 {[%clk 0:00:52.9]} 46. d5 {[%clk 0:00:31.7]} 46... g3 {[%clk
0:00:52.1]} 47. Re1 {[%clk 0:00:32.4]} 47... g2 {[%clk 0:00:52.4]} 48. Rg1
{[%clk 0:00:29.6]} 48... Ke5 {[%clk 0:00:51.9]} 49. Kc5 {[%clk 0:00:23.3]} 49...
Rg3 {[%clk 0:00:50.8]} 50. d6 {[%clk 0:00:15.9]} 50... Rc3+ {[%clk 0:00:48.1]}
51. Kb6 {[%clk 0:00:15.1]} 51... Kxd6 {[%clk 0:00:42.5]} 52. Rxg2 {[%clk
0:00:15.7]} 52... Rc6+ {[%clk 0:00:43.6]} 53. Kb5 {[%clk 0:00:16.5]} 53... Rc5+
{[%clk 0:00:40.9]} 54. Kb4 {[%clk 0:00:17.4]} 54... Rc1 {[%clk 0:00:39.7]} 55.
a4 {[%clk 0:00:17.7]} 55... Kc6 {[%clk 0:00:39.6]} 56. Rg6+ {[%clk 0:00:17.7]}
56... Kb7 {[%clk 0:00:39.7]} 57. Kb5 {[%clk 0:00:17.4]} 57... Rc7 {[%clk
0:00:37.3]} 58. a5 {[%clk 0:00:15.4]} 58... Rf7 {[%clk 0:00:36]} 59. Rg5 {[%clk
0:00:12.5]} 59... Rh7 {[%clk 0:00:31.9]} 60. b4 {[%clk 0:00:13.3]} 60... Ka7
{[%clk 0:00:27.9]} 61. Rc5 {[%clk 0:00:11.1]} 61... Kb7 {[%clk 0:00:27.5]} 62.
a6+ {[%clk 0:00:11.2]} 62... Ka7 {[%clk 0:00:27.9]} 63. Ka5 {[%clk 0:00:11.5]}
63... Rh1 {[%clk 0:00:23.9]} 64. Rc7+ {[%clk 0:00:11.9]} 64... Kb8 {[%clk
0:00:23.7]} 65. Rg7 {[%clk 0:00:12]} 65... Rh6 {[%clk 0:00:21.4]} 66. b5 {[%clk
0:00:10.9]} 66... Rh1 {[%clk 0:00:20.3]} 67. Rf7 {[%clk 0:00:04.5]} 67... Rg1
{[%clk 0:00:20]} 68. Kb6 {[%clk 0:00:04.8]} 68... Rg6+ {[%clk 0:00:19.9]} 69.
Ka5 {[%clk 0:00:05.8]} 69... Rg1 {[%clk 0:00:20.9]} 70. Rf5 {[%clk 0:00:06.4]}
70... Rg2 {[%clk 0:00:20.7]} 71. Rc5 {[%clk 0:00:06.7]} 71... Rg1 {[%clk
0:00:16.4]} 72. Kb6 {[%clk 0:00:06.3]} 72... Rg6+ {[%clk 0:00:16.8]} 73. Rc6
{[%clk 0:00:06.8]} 73... Rg8 {[%clk 0:00:18.1]} 74. Re6 {[%clk 0:00:04.8]} 74...
Rh8 {[%clk 0:00:18]} 75. Rg6 {[%clk 0:00:05.2]} 75... Rf8 {[%clk 0:00:18.2]} 76.
a7+ {[%clk 0:00:05.9]} 76... Ka8 {[%clk 0:00:18.9]} 77. Rg7 {[%clk 0:00:05.3]}
77... Rf6+ {[%clk 0:00:19]} 78. Kc7 {[%clk 0:00:04.1]} 78... Rf7+ {[%clk
0:00:19.4]} 79. Rxf7 {[%clk 0:00:04.2]} 79... Kxa7 {[%clk 0:00:20.4]} 80. Kc6+
{[%clk 0:00:04.9]} 80... Kb8 {[%clk 0:00:19.9]} 81. b6 {[%clk 0:00:05.1]} 81...
Ka8 {[%clk 0:00:20.1]} 82. Rf8# {[%clk 0:00:05.8]} 1-0